[Event "Early-Titled-Tuesday-Blitz-May-14-2024"]
[Site "Chess.com"]
[Date "2024.05.14"]
[Round "4"]
[White "TreinadorBR"]
[Black "Djager97"]
[Result "0-1"]
[WhiteElo "2330"]
[BlackElo "2539"]
[TimeControl "180+1"]
[EndTime "8:41:51 PDT"]
[Termination "Djager97 won by resignation"]

1. e4 {[%clk 0:03:00.9]} 1... e6 {[%clk 0:01:38.5]} 2. d4 {[%clk 0:02:58.1]}
2... d5 {[%clk 0:01:39.4]} 3. Nd2 {[%clk 0:02:56.8]} 3... c5 {[%clk 0:01:39.2]}
4. Ngf3 {[%clk 0:02:55]} 4... cxd4 {[%clk 0:01:38.6]} 5. exd5 {[%clk 0:02:54.3]}
5... Qxd5 {[%clk 0:01:38.8]} 6. Bc4 {[%clk 0:02:52.9]} 6... Qd6 {[%clk
0:01:39.3]} 7. O-O {[%clk 0:02:51.6]} 7... Nf6 {[%clk 0:01:39.8]} 8. Nb3 {[%clk
0:02:47]} 8... Nc6 {[%clk 0:01:40.2]} 9. Nbxd4 {[%clk 0:02:40.1]} 9... Nxd4
{[%clk 0:01:41.1]} 10. Nxd4 {[%clk 0:02:40.7]} 10... Be7 {[%clk 0:01:40.5]} 11.
c3 {[%clk 0:02:38.9]} 11... O-O {[%clk 0:01:37.6]} 12. Qe2 {[%clk 0:02:39.5]}
12... Qc7 {[%clk 0:01:32.2]} 13. Nb5 {[%clk 0:02:35.5]} 13... Qc6 {[%clk
0:01:27.9]} 14. Nd4 {[%clk 0:02:33.4]} 14... Qc7 {[%clk 0:01:27.8]} 15. Bg5
{[%clk 0:02:27.1]} 15... a6 {[%clk 0:01:14.6]} 16. Rad1 {[%clk 0:02:22.8]} 16...
Bd7 {[%clk 0:01:13.5]} 17. Bb3 {[%clk 0:02:16.1]} 17... Bc6 {[%clk 0:01:13.2]}
18. Rd3 {[%clk 0:02:10.3]} 18... Be4 {[%clk 0:01:08.5]} 19. Rg3 {[%clk
0:02:07.3]} 19... Bg6 {[%clk 0:01:08.7]} 20. Bc2 {[%clk 0:02:00.2]} 20... Rad8
{[%clk 0:01:01.5]} 21. Re1 {[%clk 0:01:34.8]} 21... Qb6 {[%clk 0:01:01.1]} 22.
b4 {[%clk 0:01:29.8]} 22... Rfe8 {[%clk 0:00:47.6]} 23. a3 {[%clk 0:01:21.6]}
23... Nd5 {[%clk 0:00:47.4]} 24. Bxe7 {[%clk 0:01:16.9]} 24... Nxe7 {[%clk
0:00:44]} 25. Bxg6 {[%clk 0:01:14]} 25... Nxg6 {[%clk 0:00:44.9]} 26. Rg5 {[%clk
0:00:47.9]} 26... Rc8 {[%clk 0:00:39.4]} 27. Qf3 {[%clk 0:00:43.4]} 27... Qc7
{[%clk 0:00:37.1]} 28. Re3 {[%clk 0:00:36.4]} 28... Qd6 {[%clk 0:00:37]} 29. g3
{[%clk 0:00:33.9]} 29... Rc7 {[%clk 0:00:36.8]} 30. h4 {[%clk 0:00:32.7]} 30...
h6 {[%clk 0:00:34.2]} 31. Rh5 {[%clk 0:00:26.1]} 31... Rec8 {[%clk 0:00:30]} 32.
a4 {[%clk 0:00:23]} 32... Ne7 {[%clk 0:00:18.8]} 33. a5 {[%clk 0:00:17.8]} 33...
Nd5 {[%clk 0:00:18.8]} 34. Rxd5 {[%clk 0:00:14.2]} 34... Qxd5 {[%clk 0:00:17.7]}
35. Qxd5 {[%clk 0:00:03.7]} 35... exd5 {[%clk 0:00:18.6]} 36. b5 {[%clk
0:00:03.3]} 36... Rxc3 {[%clk 0:00:17.4]} 37. bxa6 {[%clk 0:00:03.9]} 37... bxa6
{[%clk 0:00:16.4]} 38. Re7 {[%clk 0:00:02.7]} 38... R3c7 {[%clk 0:00:14.7]} 39.
Re5 {[%clk 0:00:02.5]} 39... Rc5 {[%clk 0:00:14.9]} 40. Nf5 {[%clk 0:00:02.4]}
40... Kf8 {[%clk 0:00:12.6]} 41. Nd6 {[%clk 0:00:02.1]} 41... Rd8 {[%clk
0:00:08.3]} 42. Nb7 {[%clk 0:00:01.9]} 42... Rc1+ {[%clk 0:00:08.2]} 43. Kg2
{[%clk 0:00:02.5]} 43... Rb8 {[%clk 0:00:05.8]} 44. Nd6 {[%clk 0:00:02.2]} 44...
d4 {[%clk 0:00:05]} 45. Rd5 {[%clk 0:00:01.6]} 45... Rd8 {[%clk 0:00:04.8]} 46.
Rxd4 {[%clk 0:00:01.5]} 46... Rc6 {[%clk 0:00:05.5]} 47. Nf5 {[%clk 0:00:01.5]}
47... Rxd4 {[%clk 0:00:06.2]} 48. Nxd4 {[%clk 0:00:02.4]} 48... Rc5 {[%clk
0:00:06.5]} 49. Nb3 {[%clk 0:00:01.3]} 49... Rb5 {[%clk 0:00:07]} 50. Nd4 {[%clk
0:00:01.2]} 50... Rxa5 {[%clk 0:00:07.5]} 51. Kf3 {[%clk 0:00:01.6]} 51... Ra1
{[%clk 0:00:06.9]} 52. Ke4 {[%clk 0:00:02.2]} 52... Ke7 {[%clk 0:00:07.2]} 53.
Kd5 {[%clk 0:00:03.1]} 53... g6 {[%clk 0:00:07.3]} 54. Kc4 {[%clk 0:00:03.7]}
54... Ra2 {[%clk 0:00:07.6]} 55. f4 {[%clk 0:00:03.3]} 55... Rg2 {[%clk
0:00:07.8]} 56. f5 {[%clk 0:00:04.1]} 56... Rxg3 {[%clk 0:00:07.7]} 57. fxg6
{[%clk 0:00:05]} 57... fxg6 {[%clk 0:00:08.2]} 58. Kd5 {[%clk 0:00:05.4]} 58...
Rd3 {[%clk 0:00:08.1]} 59. Ke4 {[%clk 0:00:06.1]} 59... Rxd4+ {[%clk 0:00:08.6]}
0-1

[Event "Early-Titled-Tuesday-Blitz-May-14-2024"]
[Site "Chess.com"]
[Date "2024.05.14"]
[Round "4"]
[White "Sasha_Solovev_777"]
[Black "tomesao"]
[Result "1-0"]
[WhiteElo "2210"]
[BlackElo "2449"]
[TimeControl "180+1"]
[EndTime "8:41:53 PDT"]
[Termination "Sasha_Solovev_777 won by resignation"]

1. e4 {[%clk 0:03:00.9]} 1... e6 {[%clk 0:02:58.8]} 2. d4 {[%clk 0:03:00.3]}
2... d5 {[%clk 0:02:59.7]} 3. Nc3 {[%clk 0:03:00.5]} 3... Bb4 {[%clk 0:02:57.2]}
4. Ne2 {[%clk 0:02:59.2]} 4... Nc6 {[%clk 0:02:54.5]} 5. a3 {[%clk 0:02:55.1]}
5... Bxc3+ {[%clk 0:02:54]} 6. Nxc3 {[%clk 0:02:56]} 6... dxe4 {[%clk
0:02:53.8]} 7. Bb5 {[%clk 0:02:54.1]} 7... Nf6 {[%clk 0:02:39.9]} 8. Bg5 {[%clk
0:02:53.4]} 8... h6 {[%clk 0:02:36.2]} 9. Bxf6 {[%clk 0:02:49.5]} 9... Qxf6
{[%clk 0:02:37.1]} 10. Bxc6+ {[%clk 0:02:49]} 10... bxc6 {[%clk 0:02:36.5]} 11.
Nxe4 {[%clk 0:02:49.3]} 11... Qf4 {[%clk 0:02:30.2]} 12. Qf3 {[%clk 0:02:04]}
12... Qxf3 {[%clk 0:02:12.3]} 13. gxf3 {[%clk 0:02:04.9]} 13... Rb8 {[%clk
0:02:12.9]} 14. b4 {[%clk 0:02:01.4]} 14... a5 {[%clk 0:02:12.3]} 15. c3 {[%clk
0:02:00.6]} 15... f6 {[%clk 0:02:08.7]} 16. f4 {[%clk 0:01:54.3]} 16... Kf7
{[%clk 0:02:05.3]} 17. O-O-O {[%clk 0:01:44]} 17... g5 {[%clk 0:02:03]} 18. fxg5
{[%clk 0:01:22.7]} 18... hxg5 {[%clk 0:02:01.5]} 19. Nc5 {[%clk 0:01:22.2]}
19... axb4 {[%clk 0:01:46.9]} 20. axb4 {[%clk 0:01:20.9]} 20... Ra8 {[%clk
0:01:47.2]} 21. Kb2 {[%clk 0:01:21]} 21... Rh3 {[%clk 0:01:44]} 22. Rd3 {[%clk
0:01:19]} 22... Rh4 {[%clk 0:01:40.9]} 23. Re3 {[%clk 0:01:14.3]} 23... Rf4
{[%clk 0:01:38.1]} 24. f3 {[%clk 0:01:13.8]} 24... Rh4 {[%clk 0:01:35.4]} 25.
Kb3 {[%clk 0:00:56.4]} 25... Rh3 {[%clk 0:01:30.4]} 26. Rd3 {[%clk 0:00:51.5]}
26... f5 {[%clk 0:00:57.4]} 27. Rg1 {[%clk 0:00:23.8]} 27... Kf6 {[%clk
0:00:53.4]} 28. Rg2 {[%clk 0:00:17.6]} 28... Ra1 {[%clk 0:00:48.6]} 29. f4
{[%clk 0:00:17.5]} 29... gxf4 {[%clk 0:00:42.9]} 30. Rxh3 {[%clk 0:00:16.1]}
30... Ba6 {[%clk 0:00:39.9]} 31. Rh6+ {[%clk 0:00:15.4]} 31... Ke7 {[%clk
0:00:40.1]} 32. Rxe6+ {[%clk 0:00:15]} 32... Kf7 {[%clk 0:00:40.6]} 33. Reg6
{[%clk 0:00:12.4]} 33... f3 {[%clk 0:00:32.3]} 34. Rg7+ {[%clk 0:00:12.2]} 34...
Kf8 {[%clk 0:00:31.7]} 35. Rg8+ {[%clk 0:00:11.9]} 35... Ke7 {[%clk 0:00:29.8]}
36. Rf2 {[%clk 0:00:08.1]} 36... Be2 {[%clk 0:00:28.9]} 37. h4 {[%clk
0:00:05.5]} 37... Rf1 {[%clk 0:00:16.3]} 38. Rxf1 {[%clk 0:00:04.7]} 38... Bxf1
{[%clk 0:00:17.2]} 39. Rg1 {[%clk 0:00:04.2]} 39... Be2 {[%clk 0:00:16.3]} 40.
Re1 {[%clk 0:00:02.5]} 40... Kf6 {[%clk 0:00:13]} 41. Kc2 {[%clk 0:00:02.8]}
41... f2 {[%clk 0:00:12.6]} 42. Rc1 {[%clk 0:00:02.1]} 42... Kg6 {[%clk
0:00:05.9]} 43. Kd2 {[%clk 0:00:00.8]} 43... f1=Q {[%clk 0:00:06]} 44. Rxf1
{[%clk 0:00:01.4]} 44... Bxf1 {[%clk 0:00:06.9]} 45. Ke3 {[%clk 0:00:02.3]}
45... Kh5 {[%clk 0:00:04.3]} 46. Kf4 {[%clk 0:00:02.8]} 46... Bh3 {[%clk
0:00:04]} 47. Nd7 {[%clk 0:00:02.7]} 47... Kxh4 {[%clk 0:00:04.2]} 48. Ne5
{[%clk 0:00:03]} 48... Bg2 {[%clk 0:00:04.4]} 49. Kxf5 {[%clk 0:00:02.7]} 49...
Kg3 {[%clk 0:00:04.9]} 50. Ke6 {[%clk 0:00:03]} 50... Kf2 {[%clk 0:00:05.3]} 51.
Kd7 {[%clk 0:00:03.5]} 51... Ke3 {[%clk 0:00:05.8]} 52. Nxc6 {[%clk 0:00:04]}
52... Kd2 {[%clk 0:00:04.5]} 53. Kxc7 {[%clk 0:00:04.3]} 53... Kxc3 {[%clk
0:00:04.7]} 54. b5 {[%clk 0:00:05.2]} 54... Kc4 {[%clk 0:00:03.7]} 55. b6 {[%clk
0:00:05.5]} 55... Kb5 {[%clk 0:00:02.5]} 56. b7 {[%clk 0:00:05.4]} 1-0

[Event "Early-Titled-Tuesday-Blitz-May-14-2024"]
[Site "Chess.com"]
[Date "2024.05.14"]
[Round "4"]
[White "Andrey_Klymchuk"]
[Black "hongnhung1234"]
[Result "0-1"]
[WhiteElo "2697"]
[BlackElo "2561"]
[TimeControl "180+1"]
[EndTime "8:41:59 PDT"]
[Termination "hongnhung1234 won by checkmate"]

1. e4 {[%clk 0:03:00.9]} 1... c5 {[%clk 0:02:59.7]} 2. Nf3 {[%clk 0:02:59.8]}
2... e6 {[%clk 0:03:00.2]} 3. g3 {[%clk 0:02:58.9]} 3... Nc6 {[%clk 0:02:59.4]}
4. Bg2 {[%clk 0:02:58.6]} 4... Nf6 {[%clk 0:03:00.1]} 5. Qe2 {[%clk 0:02:58.5]}
5... d6 {[%clk 0:02:58.6]} 6. O-O {[%clk 0:02:58.1]} 6... Be7 {[%clk 0:02:58.5]}
7. c3 {[%clk 0:02:57.4]} 7... e5 {[%clk 0:02:57.8]} 8. Rd1 {[%clk 0:02:55.8]}
8... O-O {[%clk 0:02:56.1]} 9. d4 {[%clk 0:02:54.4]} 9... cxd4 {[%clk
0:02:48.3]} 10. cxd4 {[%clk 0:02:55.3]} 10... Bg4 {[%clk 0:02:48.1]} 11. dxe5
{[%clk 0:02:52.2]} 11... Nxe5 {[%clk 0:02:46.5]} 12. Bf4 {[%clk 0:02:49.1]}
12... Qb6 {[%clk 0:02:41.3]} 13. Nbd2 {[%clk 0:02:19.3]} 13... Rac8 {[%clk
0:02:06.8]} 14. Bxe5 {[%clk 0:02:07.1]} 14... dxe5 {[%clk 0:01:57.3]} 15. Nc4
{[%clk 0:02:07.1]} 15... Bxf3 {[%clk 0:01:54.6]} 16. Bxf3 {[%clk 0:02:03.4]}
16... Qe6 {[%clk 0:01:41.7]} 17. Rac1 {[%clk 0:01:56.5]} 17... Bc5 {[%clk
0:01:36.9]} 18. b3 {[%clk 0:01:49.3]} 18... h6 {[%clk 0:01:24.7]} 19. Ne3 {[%clk
0:01:48.6]} 19... Bxe3 {[%clk 0:01:18.5]} 20. Qxe3 {[%clk 0:01:48.1]} 20... b6
{[%clk 0:01:09.8]} 21. Be2 {[%clk 0:01:44.4]} 21... Rfd8 {[%clk 0:00:58.4]} 22.
Bc4 {[%clk 0:01:37.7]} 22... Qh3 {[%clk 0:00:57.7]} 23. Qf3 {[%clk 0:01:28.4]}
23... Qg4 {[%clk 0:00:19.3]} 24. Qxg4 {[%clk 0:01:20.9]} 24... Nxg4 {[%clk
0:00:20.2]} 25. a4 {[%clk 0:01:11.5]} 25... Nf6 {[%clk 0:00:16.7]} 26. f3 {[%clk
0:01:10.9]} 26... Kf8 {[%clk 0:00:14.4]} 27. Kf2 {[%clk 0:01:10.8]} 27... Nd7
{[%clk 0:00:12.5]} 28. b4 {[%clk 0:01:00.6]} 28... Nb8 {[%clk 0:00:10.6]} 29.
Rxd8+ {[%clk 0:00:58.9]} 29... Rxd8 {[%clk 0:00:10.9]} 30. Bd5 {[%clk
0:00:58.5]} 30... Ke7 {[%clk 0:00:08.7]} 31. Ke3 {[%clk 0:00:54.5]} 31... Na6
{[%clk 0:00:08.3]} 32. Rc4 {[%clk 0:00:52.3]} 32... Rd7 {[%clk 0:00:07.9]} 33.
f4 {[%clk 0:00:49.2]} 33... f6 {[%clk 0:00:07]} 34. fxe5 {[%clk 0:00:48.5]}
34... fxe5 {[%clk 0:00:07.9]} 35. Kd3 {[%clk 0:00:46.8]} 35... Nc7 {[%clk
0:00:06.1]} 36. Ke3 {[%clk 0:00:37.9]} 36... Nxd5+ {[%clk 0:00:06]} 37. exd5
{[%clk 0:00:38.8]} 37... Rxd5 {[%clk 0:00:06.9]} 38. Ke4 {[%clk 0:00:39.2]}
38... Ke6 {[%clk 0:00:06.4]} 39. Rc7 {[%clk 0:00:38.1]} 39... Rd4+ {[%clk
0:00:06.7]} 40. Ke3 {[%clk 0:00:38.4]} 40... Rxb4 {[%clk 0:00:07.1]} 41. Rxa7
{[%clk 0:00:38.2]} 41... g5 {[%clk 0:00:07.5]} 42. Rh7 {[%clk 0:00:37.4]} 42...
Rxa4 {[%clk 0:00:05.8]} 43. Rxh6+ {[%clk 0:00:37.7]} 43... Kd5 {[%clk
0:00:06.5]} 44. Rxb6 {[%clk 0:00:38.5]} 44... Ra3+ {[%clk 0:00:07.1]} 45. Kf2
{[%clk 0:00:38.4]} 45... Ra2+ {[%clk 0:00:07.9]} 46. Kf3 {[%clk 0:00:38.6]}
46... Rxh2 {[%clk 0:00:07.6]} 47. Kg4 {[%clk 0:00:36]} 47... Rg2 {[%clk
0:00:07.8]} 48. Rb8 {[%clk 0:00:34.6]} 48... e4 {[%clk 0:00:07.6]} 49. Rd8+
{[%clk 0:00:33.7]} 49... Ke5 {[%clk 0:00:07.8]} 50. Re8+ {[%clk 0:00:33]} 50...
Kd4 {[%clk 0:00:08.1]} 51. Kxg5 {[%clk 0:00:33.2]} 51... e3 {[%clk 0:00:07.9]}
52. Kf4 {[%clk 0:00:32.4]} 52... Rf2+ {[%clk 0:00:07.6]} 53. Kg5 {[%clk
0:00:31]} 53... e2 {[%clk 0:00:08.4]} 54. g4 {[%clk 0:00:30]} 54... Kd3 {[%clk
0:00:08.3]} 55. Kg6 {[%clk 0:00:28.3]} 55... Rf4 {[%clk 0:00:08.5]} 56. Rxe2
{[%clk 0:00:27]} 56... Kxe2 {[%clk 0:00:09]} 57. g5 {[%clk 0:00:27.5]} 57... Ke3
{[%clk 0:00:09.6]} 58. Kh7 {[%clk 0:00:27.9]} 58... Ke4 {[%clk 0:00:09]} 59. g6
{[%clk 0:00:28.4]} 59... Rh4+ {[%clk 0:00:09]} 60. Kg8 {[%clk 0:00:28.6]} 60...
Kf5 {[%clk 0:00:09.8]} 61. Kf7 {[%clk 0:00:28.6]} 61... Ra4 {[%clk 0:00:09.1]}
62. g7 {[%clk 0:00:29]} 62... Ra7+ {[%clk 0:00:09.8]} 63. Kf8 {[%clk 0:00:29.5]}
63... Kf6 {[%clk 0:00:10]} 64. g8=Q {[%clk 0:00:28.2]} 64... Ra8# {[%clk
0:00:09.9]} 0-1

[Event "Early-Titled-Tuesday-Blitz-May-14-2024"]
[Site "Chess.com"]
[Date "2024.05.14"]
[Round "4"]
[White "BillCoe"]
[Black "biveklama"]
[Result "0-1"]
[WhiteElo "2178"]
[BlackElo "2558"]
[TimeControl "180+1"]
[EndTime "8:42:02 PDT"]
[Termination "biveklama won by resignation"]

1. e4 {[%clk 0:03:00.9]} 1... c5 {[%clk 0:02:59.3]} 2. Nf3 {[%clk 0:03:01.2]}
2... d6 {[%clk 0:02:27.3]} 3. d4 {[%clk 0:03:00.5]} 3... cxd4 {[%clk 0:02:27.6]}
4. Nxd4 {[%clk 0:03:01.4]} 4... Nf6 {[%clk 0:02:28.1]} 5. Nc3 {[%clk 0:03:02]}
5... e5 {[%clk 0:02:28.5]} 6. Nb3 {[%clk 0:02:56]} 6... Ke7 {[%clk 0:02:27.9]}
7. Bg5 {[%clk 0:02:51]} 7... Be6 {[%clk 0:02:23.6]} 8. Be2 {[%clk 0:02:50.5]}
8... a6 {[%clk 0:02:19.9]} 9. O-O {[%clk 0:02:49.7]} 9... Nd7 {[%clk 0:02:19.3]}
10. f4 {[%clk 0:02:49.4]} 10... h6 {[%clk 0:02:19.3]} 11. Bh4 {[%clk 0:02:48]}
11... Ke8 {[%clk 0:02:13.1]} 12. f5 {[%clk 0:02:41.5]} 12... Bxb3 {[%clk
0:02:13]} 13. axb3 {[%clk 0:02:42.4]} 13... Be7 {[%clk 0:02:10.8]} 14. Kh1
{[%clk 0:02:37.8]} 14... Rc8 {[%clk 0:02:08.4]} 15. Rf3 {[%clk 0:02:26.1]} 15...
Nc5 {[%clk 0:01:46.3]} 16. Bd3 {[%clk 0:02:19.6]} 16... Ng8 {[%clk 0:01:33.7]}
17. Bf2 {[%clk 0:02:02.1]} 17... Nf6 {[%clk 0:01:29.5]} 18. Qe2 {[%clk
0:01:59.3]} 18... Kf8 {[%clk 0:01:14.2]} 19. Rd1 {[%clk 0:01:57.1]} 19... h5
{[%clk 0:01:12.3]} 20. Bxc5 {[%clk 0:01:52.9]} 20... Rxc5 {[%clk 0:01:10.4]} 21.
Bc4 {[%clk 0:01:51.2]} 21... h4 {[%clk 0:01:05]} 22. Nd5 {[%clk 0:01:41]} 22...
b5 {[%clk 0:00:54]} 23. Nxf6 {[%clk 0:01:27.4]} 23... Bxf6 {[%clk 0:00:54.3]}
24. Bd5 {[%clk 0:01:23.9]} 24... b4 {[%clk 0:00:42]} 25. Bc4 {[%clk 0:01:18.8]}
25... a5 {[%clk 0:00:40.8]} 26. Rfd3 {[%clk 0:01:17.4]} 26... Be7 {[%clk
0:00:39.4]} 27. Rd5 {[%clk 0:01:14]} 27... Qc7 {[%clk 0:00:32.5]} 28. h3 {[%clk
0:01:07.3]} 28... Rh6 {[%clk 0:00:24.9]} 29. Qd3 {[%clk 0:01:00.5]} 29... Kg8
{[%clk 0:00:11.5]} 30. Qe3 {[%clk 0:00:51.8]} 30... Kh7 {[%clk 0:00:09.7]} 31.
c3 {[%clk 0:00:47.5]} 31... Kg8 {[%clk 0:00:04.2]} 32. cxb4 {[%clk 0:00:43.7]}
32... axb4 {[%clk 0:00:05.1]} 33. Qd2 {[%clk 0:00:43.3]} 33... Qb6 {[%clk
0:00:03.9]} 34. Ra1 {[%clk 0:00:40.5]} 34... Kh7 {[%clk 0:00:03.4]} 35. Ra4
{[%clk 0:00:38.3]} 35... Rxd5 {[%clk 0:00:01.8]} 36. Bxd5 {[%clk 0:00:35.8]}
36... Qd4 {[%clk 0:00:01.8]} 37. Qxd4 {[%clk 0:00:34.2]} 37... exd4 {[%clk
0:00:02.7]} 38. Rxb4 {[%clk 0:00:34.2]} 38... Bf6 {[%clk 0:00:02.3]} 39. Bc4
{[%clk 0:00:31]} 39... Rh5 {[%clk 0:00:01.6]} 40. Bd3 {[%clk 0:00:29.8]} 40...
Rg5 {[%clk 0:00:02.1]} 41. Rc4 {[%clk 0:00:17.6]} 41... Rg3 {[%clk 0:00:03]} 42.
Bc2 {[%clk 0:00:17.8]} 42... Re3 {[%clk 0:00:03.3]} 43. Kg1 {[%clk 0:00:15]}
43... d3 {[%clk 0:00:03.1]} 44. Kf2 {[%clk 0:00:13.6]} 44... Re2+ {[%clk
0:00:03.7]} 45. Kf3 {[%clk 0:00:12.4]} 45... Rxc2 {[%clk 0:00:04.6]} 46. Ra4
{[%clk 0:00:05.4]} 46... Rxb2 {[%clk 0:00:04.9]} 47. Ra1 {[%clk 0:00:04.8]}
47... d2 {[%clk 0:00:05.2]} 48. Ke2 {[%clk 0:00:03.6]} 48... Rxb3 {[%clk
0:00:05.8]} 49. Rd1 {[%clk 0:00:03.1]} 49... Bg5 {[%clk 0:00:05.4]} 50. g3
{[%clk 0:00:02.1]} 50... Rxg3 {[%clk 0:00:05.8]} 51. e5 {[%clk 0:00:02.5]} 51...
dxe5 {[%clk 0:00:05.6]} 52. f6 {[%clk 0:00:02.1]} 52... gxf6 {[%clk 0:00:05.5]}
53. Kf2 {[%clk 0:00:02.2]} 53... Rxh3 {[%clk 0:00:05.7]} 54. Kg2 {[%clk
0:00:02.7]} 54... Rg3+ {[%clk 0:00:06]} 55. Kf2 {[%clk 0:00:03.2]} 55... Rc3
{[%clk 0:00:06.6]} 56. Kg2 {[%clk 0:00:04.1]} 56... Rc1 {[%clk 0:00:06.9]} 57.
Kf2 {[%clk 0:00:05]} 57... Rxd1 {[%clk 0:00:07.3]} 58. Ke2 {[%clk 0:00:05.9]}
58... Re1+ {[%clk 0:00:07.9]} 0-1

[Event "Early-Titled-Tuesday-Blitz-May-14-2024"]
[Site "Chess.com"]
[Date "2024.05.14"]
[Round "4"]
[White "Oleksandr_Bortnyk"]
[Black "ReadySkate"]
[Result "0-1"]
[WhiteElo "3046"]
[BlackElo "2726"]
[TimeControl "180+1"]
[EndTime "8:42:03 PDT"]
[Termination "ReadySkate won by resignation"]

1. e4 {[%clk 0:02:53.7]} 1... c5 {[%clk 0:02:59]} 2. c3 {[%clk 0:02:53.8]} 2...
d5 {[%clk 0:02:58.7]} 3. exd5 {[%clk 0:02:54.7]} 3... Qxd5 {[%clk 0:02:59.5]} 4.
d4 {[%clk 0:02:54.8]} 4... Nc6 {[%clk 0:03:00]} 5. Be3 {[%clk 0:02:54.5]} 5...
Bf5 {[%clk 0:03:00.4]} 6. Nf3 {[%clk 0:02:52.3]} 6... e6 {[%clk 0:03:00.3]} 7.
c4 {[%clk 0:02:48.8]} 7... Qd8 {[%clk 0:02:59.6]} 8. Nc3 {[%clk 0:02:45.8]} 8...
Nf6 {[%clk 0:02:55.9]} 9. dxc5 {[%clk 0:02:37.7]} 9... Ng4 {[%clk 0:02:55]} 10.
Nd4 {[%clk 0:02:08.8]} 10... Nxe3 {[%clk 0:02:50.6]} 11. fxe3 {[%clk 0:02:09.7]}
11... Bxc5 {[%clk 0:02:40.3]} 12. Nxf5 {[%clk 0:02:06.7]} 12... exf5 {[%clk
0:02:41.2]} 13. Qxd8+ {[%clk 0:02:02.7]} 13... Rxd8 {[%clk 0:02:40]} 14. Nd5
{[%clk 0:02:03]} 14... Nb4 {[%clk 0:02:34.9]} 15. Nxb4 {[%clk 0:01:49.3]} 15...
Bxb4+ {[%clk 0:02:35.8]} 16. Kf2 {[%clk 0:01:50.1]} 16... Rd2+ {[%clk
0:02:34.6]} 17. Be2 {[%clk 0:01:50.7]} 17... Bc5 {[%clk 0:02:10.4]} 18. Rhd1
{[%clk 0:01:44.1]} 18... f4 {[%clk 0:02:04.8]} 19. Rxd2 {[%clk 0:01:37.2]} 19...
fxe3+ {[%clk 0:02:03.7]} 20. Ke1 {[%clk 0:01:38.1]} 20... Bb4 {[%clk 0:02:03.5]}
21. Bf3 {[%clk 0:01:35.8]} 21... exd2+ {[%clk 0:02:02.2]} 22. Kd1 {[%clk
0:01:21]} 22... Kd7 {[%clk 0:02:00.1]} 23. Bxb7 {[%clk 0:01:02]} 23... Re8
{[%clk 0:01:57.3]} 24. Kc2 {[%clk 0:01:02.4]} 24... Bd6 {[%clk 0:01:48.9]} 25.
Bf3 {[%clk 0:00:40.9]} 25... h6 {[%clk 0:01:30.2]} 26. g3 {[%clk 0:00:32]} 26...
Re3 {[%clk 0:01:19.8]} 27. Bg4+ {[%clk 0:00:32]} 27... Kc7 {[%clk 0:01:18.6]}
28. Kxd2 {[%clk 0:00:32.3]} 28... Re4 {[%clk 0:01:18.7]} 29. Be2 {[%clk
0:00:32.8]} 29... Be5 {[%clk 0:01:16.2]} 30. Rb1 {[%clk 0:00:27.2]} 30... a5
{[%clk 0:01:10.7]} 31. Bd3 {[%clk 0:00:21.6]} 31... Rg4 {[%clk 0:01:07.9]} 32.
b4 {[%clk 0:00:16.8]} 32... axb4 {[%clk 0:01:07.4]} 33. Rxb4 {[%clk 0:00:17.7]}
33... h5 {[%clk 0:01:07.7]} 34. Ra4 {[%clk 0:00:17.1]} 34... Kb6 {[%clk
0:01:03.6]} 35. Ke3 {[%clk 0:00:13.2]} 35... Bd4+ {[%clk 0:01:01.7]} 36. Kf3
{[%clk 0:00:13.1]} 36... Rg5 {[%clk 0:01:00.4]} 37. Rb4+ {[%clk 0:00:07.7]}
37... Kc7 {[%clk 0:00:58.8]} 38. Be4 {[%clk 0:00:07.7]} 38... Bb6 {[%clk
0:00:52.3]} 39. a4 {[%clk 0:00:06.5]} 39... Re5 {[%clk 0:00:51.1]} 40. Rb5
{[%clk 0:00:04.8]} 40... Rxb5 {[%clk 0:00:33]} 41. cxb5 {[%clk 0:00:05.7]} 41...
Kd6 {[%clk 0:00:32.4]} 42. Kf4 {[%clk 0:00:06.1]} 42... Bg1 {[%clk 0:00:31.9]}
43. a5 {[%clk 0:00:05.7]} 43... Bxh2 {[%clk 0:00:28.6]} 44. a6 {[%clk
0:00:04.5]} 44... Bg1 {[%clk 0:00:29]} 45. Kg5 {[%clk 0:00:05]} 45... Ke5 {[%clk
0:00:24.5]} 46. Bc6 {[%clk 0:00:04.6]} 46... g6 {[%clk 0:00:23.7]} 47. Be8
{[%clk 0:00:04]} 47... Be3+ {[%clk 0:00:24]} 48. Kh4 {[%clk 0:00:04.5]} 48...
Ke6 {[%clk 0:00:20.6]} 49. Kh3 {[%clk 0:00:04.2]} 49... g5 {[%clk 0:00:19.1]}
50. Kg2 {[%clk 0:00:03.5]} 50... g4 {[%clk 0:00:19.4]} 51. Kf1 {[%clk
0:00:04.1]} 51... Ke7 {[%clk 0:00:17.5]} 52. Ke2 {[%clk 0:00:05]} 52... Bb6
{[%clk 0:00:17.3]} 53. Bc6 {[%clk 0:00:05.1]} 53... f5 {[%clk 0:00:17.3]} 54.
Bb7 {[%clk 0:00:04.7]} 54... Kf6 {[%clk 0:00:17.5]} 55. Bc6 {[%clk 0:00:04.6]}
55... Kg5 {[%clk 0:00:17.9]} 56. Bd7 {[%clk 0:00:04.3]} 56... f4 {[%clk
0:00:17.6]} 57. gxf4+ {[%clk 0:00:03.8]} 57... Kxf4 {[%clk 0:00:18.5]} 58. Kf1
{[%clk 0:00:02.5]} 58... Kg3 {[%clk 0:00:17.6]} 59. Bc8 {[%clk 0:00:02.5]} 59...
Kh2 {[%clk 0:00:14.2]} 60. Bf5 {[%clk 0:00:01.9]} 60... g3 {[%clk 0:00:14.1]}
61. Be4 {[%clk 0:00:02.3]} 61... h4 {[%clk 0:00:14.7]} 62. Ke2 {[%clk
0:00:02.1]} 62... h3 {[%clk 0:00:14.7]} 63. Kd3 {[%clk 0:00:03]} 63... g2 {[%clk
0:00:15]} 64. Bxg2 {[%clk 0:00:03.2]} 64... hxg2 {[%clk 0:00:15.5]} 65. a7
{[%clk 0:00:04.1]} 65... Bxa7 {[%clk 0:00:15.3]} 0-1